Cogmind - Beta 10.1 @@@ ROGUE MODE // 2020.09.30 @ 17:52:43 Player: Minty Result: Destroyed by as-73811 with Assembled Rifle Performance ------------- Evolutions (0) 0 Regions Visited (2) 400 Robots Destroyed (11) 55 Value Destroyed (238) 238 Prototype IDs (1) 20 Alien Tech Used (0) 0 Bonus (-149) -149 TOTAL SCORE: 564 Bonus ------- Friendly Fire -149 Cogmind --------- Core Integrity 0/250 Matter 247/450 Energy 100/100 System Corruption 0% Temperature Cool (0) Movement Walking (120) Location -10/Mines Parts ------- > --- POWER (1) -------- (None) > --- PROPULSION (2) --- Aluminum Leg Aluminum Leg > --- UTILITY (2) ------ Heat Sink Large Matter Pod > --- WEAPON (2) ------- (None) > --- INVENTORY (4) ---- Sensor Drone Bay (20/20) Datajack Peak State ------------ > --- POWER ------------ Light Nuclear Core > --- PROPULSION ------- Aluminum Leg Aluminum Leg > --- UTILITY ---------- Heat Sink Sensor Drone Bay > --- WEAPON ----------- Assault Rifle Grenade Launcher > --- INVENTORY -------- Datajack [Rating: 16] Favorites ----------- Power Light Nuclear Core Engine Light Ion Engine Power Core Light Nuclear Core Propulsion Aluminum Leg Leg Aluminum Leg Wheel Wheel Utility Heat Sink Device Heat Sink Storage Large Matter Pod Protection Light Armor Plating Weapon Small Laser Energy Gun Small Laser Ballistic Gun Assault Rifle Launcher Grenade Launcher Build | -11 -10 -10 ------- Run | Scr Mat Min Slots Evolved . | . . . Power . | . . . Propulsion . | . . . Utility . | . . . Weapon . | . . . Parts Attached 18 | 7 6 5 Power 2 | 1 1 . Engine 1 | 1 . . Core 1 | . 1 . Reactor . | . . . Propulsion 5 | 3 2 . Treads . | . . . Leg 2 | . 2 . Wheel 3 | 3 . . Hover . | . . . Flight . | . . . Utility 7 | 1 3 3 Device 2 | . 1 1 Storage 3 | 1 . 2 Processor . | . . . Hackware . | . . . Protection 2 | . 2 . Artifact . | . . . Weapon 4 | 2 . 2 Energy Gun 2 | 2 . . Energy Cannon . | . . . Ballistic Gun 1 | . . 1 Ballistic Cannon . | . . . Launcher 1 | . . 1 Special Weapon . | . . . Impact Weapon . | . . . Slashing Weapon . | . . . Piercing Weapon . | . . . Special Melee Weapon . | . . . Unidentified Prototypes 1 | . . 1 Parts Lost 4 | . 2 2 Power 1 | . . 1 Propulsion 1 | . 1 . Utility . | . . . Weapon 2 | . 1 1 Highest Loss Streak 2 | . 2 2 Average Slot Usage (%) 93 | . 86 97 Engine 1 | . 4 . Core 12 | . 9 14 Leg 19 | . 4 28 Wheel 8 | . 22 . Device 11 | . 5 15 Storage 9 | . 8 9 Protection 4 | . 6 3 Energy Gun 10 | . 23 3 Ballistic Gun 6 | . . 10 Launcher 7 | . . 12 Naked Turns . | . . . Heaviest Build 14 | 9 14 14 Greatest Support 26 | 26 20 20 Greatest Overweight (x) . | . . . Average Overweight (x) . | . . . Largest Inventory Capacity 6 | 6 6 4 Average Capacity 4 | 5 5 4 Most Carried 2 | . 2 2 Average Carried 1 | . . 1 Final Capacity 6 | 6 4 4 Final Carried 2 | . 1 2 Class Distribution -------------------- 63% | Scavenger-Mutant 36% | Mutant Dominant Class ---------------- Mutant | -10/Materials Scavenger-Mutant | -10/Mines Resources | -11 -10 -10 ----------- Run | Scr Mat Min Matter Collected 427 | 270 30 127 Remotely . | . . . Salvage Created 400 | 118 266 16 Parts 26 | 8 14 4 Haulers Intercepted 1 | . 1 . Recyclers Shooed . | . . . Parts Field Recycled . | . . . Retrieved Matter . | . . . Parts Self-Destructed . | . . . Prevented . | . . . Kills | -11 -10 -10 ------- Run | Scr Mat Min Combat Hostiles Destroyed 7 | . 5 2 Guns 5 | . 5 . AOE 2 | . . 2 Classes Destroyed 5 | 2 2 1 Tunneler 2 | 2 . . Hauler 1 | . 1 . Recycler 1 | 1 . . Swarmer 2 | . . 2 Grunt 5 | . 5 . Best Kill Streak 3 | 3 2 2 Combat Bots Only 2 | . 2 2 Max Kills in Single Turn 2 | 1 1 2 Gunslinging . | . . . Exploded 2 | . . 2 Melee . | . . . Uniques/NPCs Destroyed . | . . . Combat | -11 -10 -10 -------- Run | Scr Mat Min Damage Taken 711 | . 341 370 Core 259 | . 118 141 Absorbed by Shields . | . . . Core Remaining (%) 100 | 100 . . Volleys Fired 50 | 3 33 14 Largest 2 | 2 2 2 Hottest 80 | 80 80 50 Shots Fired 80 | 6 56 18 Gun 69 | 6 56 7 Cannon . | . . . Launcher 11 | . . 11 Special . | . . . Kinetic 4 | . . 4 Thermal 65 | 6 56 3 Explosive 11 | . . 11 Electromagnetic . | . . . Robot Hit Streak 12 | 4 12 2 Robot Miss Streak 3 | 1 2 3 Penetration Max . | . . . Secondary Targets 1 | . 1 . Max Gunslinging Chain 1 | . 1 . Shots Hit Robots 47 | 4 37 6 Core Hits 32 | 4 14 14 Critical Hits . | . . . Critical Kills . | . . . Critical Parts Destroyed . | . . . Melee Attacks . | . . . Impact . | . . . Slashing . | . . . Piercing . | . . . Sneak Attacks . | . . . Combat Hostiles . | . . . Follow-up Attacks . | . . . Damage Inflicted 1019 | 44 445 530 Guns 528 | 44 445 39 Cannons . | . . . Explosions 483 | . . 483 Melee . | . . . Ramming 8 | . . 8 Kinetic 28 | . . 28 Thermal 500 | 44 445 11 Explosive 483 | . . 483 Electromagnetic . | . . . Impact . | . . . Slashing . | . . . Piercing . | . . . Highest Corruption . | . . . Average Corruption . | . . . Corruption Purged . | . . . Overload Shots . | . . . Overflow Damage 2 | . . 2 Projectiles . | . . . Explosions 2 | . . 2 Melee . | . . . Knockbacks . | . . . Impact . | . . . Kinetic . | . . . Secondary . | . . . Self-Inflicted Damage 45 | . . 45 Shots 3 | . . 3 Rammed 1 | . . 1 Targets Rammed 1 | . . 1 Kicked . | . . . Crushed . | . . . Highest Temperature 255 | 18 255 7 Average Temperature 75 | 12 81 7 Received Heat Transfer 212 | . 192 20 Siege Activations . | . . . Robots Corrupted . | . . . Combat Hostiles . | . . . Parts Fried . | . . . Impact Corruptions . | . . . Robots Melted . | . . . Combat Hostiles . | . . . Parts Melted 1 | . 1 . Heat Transferred 1125 | 100 1000 25 Parts Sabotaged . | . . . Parts Stolen . | . . . Parts Stripped . | . . . Power Chain Reactions . | . . . Missiles Intercepted . | . . . Alert | -11 -10 -10 ------- Run | Scr Mat Min Peak Influence 150 | 15 150 58 Initial 58 | . 9 58 Average 56 | 4 79 52 Maximum Alert Level . | . . . Low Security (%) 100 | 100 100 100 Level 1 . | . . . Level 2 . | . . . Level 3 . | . . . Level 4 . | . . . Level 5 . | . . . High Security . | . . . Max Security . | . . . Squads Dispatched 1 | . 1 . Investigation 1 | . 1 . Extermination . | . . . Reinforcement . | . . . Assault . | . . . Garrison . | . . . Intercept . | . . . Construction Impeded . | . . . Haulers Reinforced . | . . . Stealth | -11 -10 -10 --------- Run | Scr Mat Min Distress Signals . | . . . Communications Jammed . | . . . Distress Signals . | . . . Times Spotted 29 | . 8 21 Peak Tracking Total 21 | . 3 21 Tactical Retreats . | . . . Traps | -11 -10 -10 ------- Run | Scr Mat Min Traps Triggered 1 | . 1 . Indirectly . | . . . Trap Hack Attempts . | . . . Triggered . | . . . Disarmed . | . . . Reprogrammed . | . . . Reused . | . . . Traps Extracted . | . . . Installed . | . . . Triggered . | . . . Machines | -11 -10 -10 ---------- Run | Scr Mat Min Machines Disabled 3 | . . 3 Max in Single Turn 2 | . . 2 Machines Sabotaged . | . . . Garrisons Compromised . | . . . Overloaded Fab Kills . | . . . Fab Network Shutdowns . | . . . Hacking | -11 -10 -10 --------- Run | Scr Mat Min Machines Accessed 2 | . 1 1 Terminals . | . . . Fabricators . | . . . Repair Stations . | . . . Recycling Units 1 | . 1 . Scanalyzers . | . . . Garrison Access . | . . . Total Hacks 4 | . 3 1 Successful 3 | . 2 1 Failed 1 | . 1 . Catastrophic . | . . . Database Lockouts . | . . . Manual 3 | . 3 . Terminals . | . . . Fabricators . | . . . Repair Stations . | . . . Recycling Units 3 | . 3 . Scanalyzers . | . . . Garrison Access . | . . . Terminal Hacks 1 | . . 1 Open Door 1 | . . 1 Fabricator Hacks . | . . . Repair Station Hacks . | . . . Recycling Unit Hacks . | . . . Scanalyzer . | . . . Garrison Access Hacks . | . . . Unauthorized Hacks 2 | . 2 . Terminals . | . . . Fabricators . | . . . Repair Stations . | . . . Recycling Units 2 | . 2 . Monitor 1 | . 1 . Mask 1 | . 1 . Scanalyzers . | . . . Garrison Access . | . . . Data Cores Recovered . | . . . Used . | . . . Hacking Detections 1 | . 1 . Full Trace Events 1 | . 1 . Feedback Events . | . . . Feedback Blocked . | . . . Robot Schematics Acquired . | . . . Robots Built . | . . . Matter . | . . . Time . | . . . Total Robot Build Rating . | . . . Part Schematics Acquired . | . . . Parts Built . | . . . Matter . | . . . Time . | . . . Total Part Build Rating . | . . . Parts Repaired . | . . . Time . | . . . Parts Recycled . | . . . Recycled Matter . | . . . Retrieved Matter . | . . . Retrieved Components . | . . . Parts Scanalyzed . | . . . Part Schematics Acquired . | . . . Parts Damaged . | . . . Bothacking | -11 -10 -10 ------------ Run | Scr Mat Min Used RIF Installer . | . . . Robots Hacked . | . . . Non-combat . | . . . Combat . | . . . Robot Hacks Applied . | . . . Relay Couplers Released . | . . . Robots Rewired . | . . . Allies Hacked . | . . . Hacks Repelled . | . . . Allies | -11 -10 -10 -------- Run | Scr Mat Min Total Allies 2 | . . 2 Largest Group 2 | . . 2 Highest-Rated Group 54 | . . 54 Highest-Rated Ally 31 | . . 31 Total Orders 1 | . . 1 RETURN 1 | . . 1 Ally Attacks 3 | . . 3 Total Damage 22 | . . 22 Kills 1 | . . 1 Allies Corrupted . | . . . Allies Melted . | . . . Intel | -11 -10 -10 ------- Run | Scr Mat Min Robot Analysis Total . | . . . Derelict Logs Recovered 1 | . . 1 Drone Launches 17 | . . 17 Drone Recoveries 17 | . . 17 Exploration | -11 -10 -10 ------------- Run | Scr Mat Min Turns Passed 791 | 76 263 452 Spaces Moved 560 | 66 191 303 Core 2 | 2 . . Treads . | . . . Legs 330 | . 27 303 Wheels 228 | 64 164 . Hover . | . . . Flight . | . . . Fastest Speed 50 | 50 80 120 Average Speed 104 | 85 85 120 Slowest Speed 120 | 90 120 120 Overloaded Moves . | . . . Propulsion Burnouts . | . . . Robots Hopped . | . . . Cave-ins Triggered . | . . . Exploration Rate (%) 31 | 4 32 58 Regions Visited 2 Branch Regions 1 Pre-discovered Areas 1 | . . 1 Known Exits Taken . | . . . Unknown Exits Taken 2 | 1 1 . Scrap Searched 2 | . . 2 Spaces Dug . | . . . Terrain Destroyed 70 | . . 70 Melee . | . . . Projectile . | . . . AOE 70 | . . 70 Terrain Rammed . | . . . Walls Destroyed . | . . . Machines Disabled . | . . . Actions | -11 -10 -10 --------- Run | Scr Mat Min Total 683 | 76 234 373 Wait 45 | . . 45 Move 558 | 65 190 303 Hop . | . . . Pick Up 2 | . 1 1 Fast Attach 16 | 7 5 4 Attach 2 | . 1 1 Detach 2 | . 1 1 Swap . | . . . Drop 7 | 1 3 3 Fire 50 | 3 33 14 Melee . | . . . Ram . | . . . Kick 1 | . . 1 Crush . | . . . Escape Stasis . | . . . Rewire . | . . . Trap . | . . . Miscellaneous . | . . . Route ------- -11/Scrapyard -10/Materials -10/Mines (discovered 1 exit: [*Mat]) History --------- Turn | Location | Event 12 | -11/Scrapyard | Discovered new exit (range 15) 77 | -11/Scrapyard | Entered Materials 321 | -10/Materials | Discovered new exit (range 15) 340 | -10/Materials | Entered Mines 415 | -10/Mines | Discovered new exit (range 9) 562 | -10/Mines | Found the Drone Emporium 567 | -10/Mines | Found Prototype Device 567 | -10/Mines | Identified Sensor Drone Bay 588 | -10/Mines | Build established: Scavenger-Mutant 765 | -10/Mines | Assembled infested the area 778 | -10/Mines | Core integrity fell below 50% 784 | -10/Mines | Core integrity fell below 20% 792 | -10/Mines | Destroyed by as-73811 with Assembled Rifle Last Messages --------------- 00777_ The unstable cave ceiling collapses. 00777_ R-06 Scavenger destroyed. 00777_ as-72364 destroyed. 00779_ The unstable cave ceiling collapses. 00779_ D2-KZ5(g) destroyed. 00779_ MA-G70(z) destroyed. 00780_ as-45393 destroyed. 00782_ as-50672 destroyed. 00782_ as-52866 destroyed. 00782_ Acquired 54 matter. 00783_ The unstable cave ceiling collapses. 00785_ Assault Rifle destroyed. 00789_ Grenade Launcher severed. 00789_ D-53 Grenadier destroyed. 00790_ as-12119 destroyed. 00790_ as-76610 destroyed. 00790_ as-49349 destroyed. 00790_ D-53 Grenadier destroyed. 00791_ The unstable cave ceiling collapses. 00791_ Lgt. Nuclear Core destroyed. Map ----- +----------------------------------------------------+ | | | ????????????????????????????????????????????? | | ????????????????????????????????????????????? | | ????????????????????????????????????????????? | | ????????????????????????????????????????????? | | ?????????????????????? #????????????????????? | | ?????????????????????? ????????????????????? | | ????????????????? ???? ????????????????????? | | ??????????????? ????????????????????? | | ???????????????? #??????????????????? | | ???????????????? #% ###???????????????? | | ????????????????? %% # ##??????????????? | | ?????????????????? %a #??????????????? | | ?????????????????## ###????????????? | | ?????????????????# a ##???? ??????? | | ?????????????????# ### ???????? | | ??????????? ????# % ?????????? | | ????????????? ### "???????????? | | ???????????????? #?????????????? | | ???????????????????# # #??????????????? | | ???????????????????# % #?????????????#?? | | ????????????????#### = ##???????????? ?? | | ???????????????## #???????????? ?? | | ???????????????# a][* ###??????####?? ?? | | ???????????????# a !% ##??????## ## ?? | | ???????????????# @##!####???????# #? | | ??????????????# ### #??????????? ? | | ?????????????# #??# ###?????????? ? | | ????????????# #???# #???????????# ? | | ???????????# #????### #????????????# ? | | ??????????# ???????# #????????????# #? | | ??????????# ????????# #????????????# ## | | ??????????# ?????????# ###??????????# # | | ??????????# ?????????# #??????????# | | ??????????# ??????????### #???????????# | | ?????????? ?????????????# #???????????# | | ????????? ??????????????# #???????????# | | ??????????????????????????# #???????????# | | ?????????????????????????## ############# ## | | ?????????????????????????# #? | | ?????????????????????????# ############## #? | | ?????????????????????????# ?????????????# ## | | ????????????????????????? ?????????????# | | ????????????????????????# ?????????????# ## | | ????????????????????????###???????????### *## | | ??????????????????????????????????????# ! #? | | ??????????????????????????????????????# ## #? | | ??????????????????????????????????????# ## #? | | ?????????????????????????????####?????# ## #? | | ????????????????????????????## ####### ## ## | +----------------------------------------------------+ Best States ------------- Heat Dissipation 35 Energy Generation 14 Energy Capacity 160 Matter Stores 300 Matter Capacity 450 Sight Range 16 Terrain Scan Density 10 Armor Coverage 150 Evasion (%) 44 Item Schematics ----------------- None Robot Schematics ------------------ None Fabricated ------------ Nothing Alien Tech Used ----------------- None Achievements -------------- None Challenges ------------ None Game ------ Seed MeleeWardroneCutter Manual? 0 Play Time 00:09:54 Cumulative 303.2 hours Start 2020.09.30 @ 17:46:07 End 2020.09.30 @ 17:52:43 Sessions 1 Manual Loads 0 Difficulty Rogue Special Mode None Game No. 173 Rogue 16 Adventurer 52 Explorer 105 Win Type - Total 19 Types 17/0/1/0/0/0/0/1/0 Lore% 61 Gallery% 85 Achievement% 64 Wizard Run 0 Options --------- ASCII 0 Keyboard 0 Movement Mouse Keybinds 0 Fullscreen 2 Font 18/Terminus Map View 76x50 Tactical HUD 1 Map Filters NONE Filters SATURATION(100) Steam 1 RUN: 27cc46bd-a19b-4372-b463-22173f667d60